{"text_format":"1","workbook":"xlsx","n_sheets":1,"sheets":["Потребность"],"not_rendered":{"charts":0,"images":0,"macros":0,"external_links":0,"defined_names":0,"comments":0,"pivot_tables":0},"unopened":[],"bounds":{"document_bytes":16777216,"sheet_cells":100000,"rows_first":2000,"rows_last":500,"rows_between":2000,"halvings":0,"cell_chars":16384,"cell_head_chars":4096},"cells_cut":0,"cells_raw":0,"read":"whole","date_system":"1900"}

{"sheet":"Потребность","index":0,"n_rows":84,"n_cols":14,"rows_kept":84,"cut":false,"hidden":false,"merged":[[0,9,0,12],[1,1,2,11],[4,0,4,1],[83,0,83,1],[5,0,11,0],[54,0,60,0],[61,0,67,0],[68,0,75,0],[76,0,82,0],[12,0,18,0],[19,0,25,0],[26,0,32,0],[33,0,39,0],[40,0,46,0],[47,0,53,0]]}
[]
[null,"СВЕДЕНИЯ О ПОТРЕБНОСТИ В СПЕЦИАЛИСТАХ СО СРЕДНИМ СПЕЦИАЛЬНЫМ МЕДИЦИНСКИМ,ФАРМАЦЕВТИЧЕСКИМ  ОБРАЗОВАНИЕМ Могилевской области на 2023 год"]
[]
[]
["наименование должности",null,"акушерка (старшая), акушер (старший)","медицинский статистик","медицинский регистратор (старший)","медицинская сестра выездной бригады скорой медицинской помощи, медицинский брат выездной бригады скорой медицинской помощи","медицинская сестра кабинета, структурного подразделения, медицинский брат  (старший)","медицинская сестра общей практики (старшая), медицинский брат общей практики (старший)","медицинская сестра участковая (старшая), медицинский брат участковый (старший)","помощник врача по амбулаторно-поликлинической помощи","фельдшер (старший)","фельдшер выездной бригады скорой медицинской помощи (старший)","фельдшер выездной бригады скорой медицинской помощи, выезжающий самостоятельно","Итого медицинских работников"]
["Потребность в специалистах со средним образованием","Белыничская  ЦРБ",2,null,null,null,4,null,null,4,null,null,2,{"$f":"SUM(C6:M6)","v":12}]
[null,"Быховская ЦРБ",null,null,null,null,null,null,null,4,null,null,2,6]
[null,"Глусская ЦРБ",2,null,null,null,4,1,1,5,null,null,5,18]
[null,"Горецкая ЦРБ ",3,null,null,null,3,1,null,9,null,5,null,21]
[null,"Дрибинская ЦРБ",null,null,null,null,2,null,null,1,null,null,2,5]
[null,"Кировская ЦРБ",1,null,null,null,null,null,null,1,1,null,6,9]
[null,"Климовичская ЦРБ",2,null,null,null,3,null,null,1,null,6,null,12]
["Потребность в специалистах со средним образованием","Кличевская ЦРБ",null,null,null,null,10,null,null,10,null,null,null,20]
[null,"Костюковичская ЦРБ",null,null,null,null,2,null,null,1,1,null,null,4]
[null,"Краснопольская ЦРБ",null,null,null,1,1,1,null,1,null,2,null,6]
[null,"Кричевская ЦРБ",2,null,null,null,4,null,null,4,null,null,1,11]
[null,"Круглянская ЦРБ",null,null,null,null,2,null,null,null,null,1,null,3]
[null,"Мстиславская ЦРБ",1,null,null,null,3,null,null,3,null,null,1,8]
[null,"Осиповичская ЦРБ",4,1,2,null,15,null,null,4,4,3,null,33]
["Потребность в специалистах со средним образованием","Славгородская ЦРБ",1,null,null,null,4,null,null,1,1,null,null,7]
[null,"Хотимская ЦРБ",null,null,null,null,2,null,1,2,null,2,null,7]
[null,"Чаусская ЦРБ",null,null,null,null,7,null,null,3,null,null,5,15]
[null,"Чериковская ЦРБ",null,null,null,null,null,null,null,2,1,null,2,5]
[null,"Шкловская ЦРБ",1,null,null,null,10,2,null,3,null,3,null,19]
[null,"МОКБ",null,null,null,null,15,null,null,null,null,null,null,15]
[null,"МОДБ",null,null,null,null,10,null,null,null,null,null,null,10]
["Потребность в специалистах со средним образованием","МОПБ",null,null,null,null,7,null,null,null,null,null,null,7]
[null,"госпИОВ",null,null,null,null,2,null,null,null,null,null,null,2]
[null,"МОПТД",null,null,null,null,null,null,null,null,null,null,null,0]
[null,"МОКВД",null,null,null,null,1,null,null,null,null,null,null,1]
[null,"МООД",null,null,null,null,34,null,null,null,null,null,null,34]
[null,"МОНД",null,null,null,null,null,null,null,null,null,null,null,0]
[null,"МОЛДЦ",null,null,null,null,null,null,null,null,null,null,null,0]
["Потребность в специалистах со средним образованием","МОСП",null,null,null,null,null,null,null,null,null,null,null,0]
[null,"МОДСП",null,null,null,null,null,null,null,null,null,null,null,0]
[null,"МОСПК",null,null,null,null,null,null,null,null,null,null,null,0]
[null,"Космос",null,null,null,null,null,null,null,null,null,null,null,0]
[null,"пат бюро",null,null,null,null,null,null,null,null,null,null,null,{"$f":"SUM(C38:M38)","v":0}]
[null,"МРЭК",null,null,null,null,null,null,null,null,null,null,null,0]
[null,"МОБМР",null,null,null,null,3,null,null,null,null,null,null,3]
["Потребность в специалистах со средним образованием","УЗ \"Могилевская центральная поликлиника\"",1,null,null,null,7,null,null,3,1,null,null,12]
[null,"УЗ \"Могилевская  поликлиника № 2\"",null,null,null,null,3,2,null,1,null,null,null,6]
[null,"УЗ \"Могилевская  поликлиника № 3\"",null,null,null,null,5,null,null,1,null,null,null,6]
[null,"УЗ \"Могилевская  поликлиника № 4\"",null,null,null,null,1,1,null,2,null,null,null,4]
[null,"УЗ \"Могилевская  поликлиника № 5\"",1,null,null,null,null,7,null,5,null,null,null,13]
[null,"УЗ \"Могилевская  поликлиника № 6\"",null,null,null,null,null,1,null,1,null,null,null,2]
[null,"УЗ \"Могилевская  поликлиника № 7\"",null,null,null,null,1,7,null,7,null,null,null,15]
["Потребность в специалистах со средним образованием","УЗ \"Могилевская  поликлиника № 8\"",null,null,null,null,2,3,null,7,null,null,null,12]
[null,"УЗ \"Могилевская  поликлиника № 9\"",null,null,null,null,1,null,null,1,null,null,null,2]
[null,"УЗ \"Могилевская  поликлиника №10\"",1,null,null,null,1,null,null,3,null,null,null,5]
[null,"УЗ \"Могилевская  поликлиника №11\"",3,null,null,null,2,null,null,2,null,null,null,7]
[null,"УЗ \"Могилевская  поликлиника №12\"",null,null,null,null,2,null,null,1,null,null,null,3]
[null,"УЗ \"Могилевская детская поликлиника\"",null,null,null,null,8,null,null,null,null,null,null,8]
[null,"УЗ \"Могилевская детская  поликлиника № 1\"",null,null,null,null,6,null,null,null,1,null,null,7]
["Потребность в специалистах со средним образованием","УЗ \"Могилевская детская  поликлиника № 2\"",null,null,null,null,4,null,null,null,null,null,null,4]
[null,"УЗ \"Могилевская детская  поликлиника № 4\"",null,null,null,null,3,null,null,null,1,null,null,4]
[null,"УЗ \"Могилевская  стоматологическая поликлиника\"",null,null,null,null,null,null,null,null,null,null,null,0]
[null,"УЗ \"Могилевская  стоматологическая поликлиника № 2\"",null,null,null,null,null,null,null,null,null,null,null,0]
[null,"УЗ \"Могилевская  детская стоматологическая поликлиника\"",null,null,null,null,null,null,null,null,null,null,null,0]
[null,"УЗ \"Могилевская городская станция СМП\"",null,null,null,null,null,null,null,null,null,null,2,2]
[null,"УЗ \"Могилевский Дом ребенка\"",null,null,null,null,null,null,null,null,null,null,null,0]
["Потребность в специалистах со средним образованием","МГБ СМП",3,null,null,null,40,null,null,null,null,null,null,43]
[null,"МБ № 1",3,null,null,null,50,null,null,null,null,null,null,53]
[null,"МИБ",null,null,null,null,null,null,null,null,null,null,null,0]
[null,"БЦБ",null,null,null,null,5,null,null,null,null,null,null,5]
[null,"БГБСМП",null,null,null,null,4,null,null,null,null,null,null,4]
[null,"БГДБ",null,null,2,null,2,null,null,null,null,null,null,4]
[null,"БРД",4,null,null,null,6,null,null,null,null,null,null,10]
["Потребность в специалистах со средним образованием","БМОД",null,null,null,null,1,null,null,null,null,null,null,1]
[null,"БССНП",null,null,null,null,null,null,null,null,null,null,null,{"$f":"SUM(C70:M70)","v":0}]
[null,"БЗСПК",null,null,null,null,1,null,null,null,null,null,null,1]
[null,"БГП 1",null,null,null,null,null,null,null,null,null,null,null,0]
[null,"БГП 2",3,null,null,null,2,null,null,1,null,null,null,6]
[null,"БГП 3",null,null,null,null,2,2,null,3,null,null,null,7]
[null,"БГП 4",null,1,1,null,1,1,null,null,null,null,null,4]
[null,"БГП 5",null,null,1,null,null,null,null,1,null,null,null,2]
["Потребность в специалистах со средним образованием","БГП 6",null,null,null,null,4,3,null,2,3,null,null,12]
[null,"БГП 7",null,null,1,null,null,null,null,1,null,null,null,2]
[null,"БГСП 1",null,null,null,null,null,null,null,null,null,null,null,0]
[null,"БСП 2",null,null,null,null,1,null,null,null,null,null,null,1]
[null,"БДСП",null,null,null,null,1,null,null,null,null,null,null,1]
[null,"КУП",null,null,null,null,null,null,null,null,null,null,null,0]
[null,"наименование учреждения здравоохранения",null,null,null,null,null,null,null,null,null,null,null,0]
["ИТОГО по региону:",null,{"$f":"SUM(C6:C83)","v":38},{"$f":"SUM(D6:D83)","v":2},{"$f":"SUM(E6:E83)","v":7},1,314,32,2,101,14,22,28,561]